bitfinex/quotes_BTCUSD_20260315
["timestamp","ask_amount","ask_price","bid_price","bid_amount"]
[1773607222573,0.0014,71871.0,71860.0,0.06943104]
[1773607222785,0.06976536,71875.0,71861.0,0.13707423]
[1773607223110,0.0014,71870.0,71862.0,0.20665203]
[1773607223315,0.06956758,71873.0,71862.0,0.0695778]
[1773607223448,0.0014,71869.0,71862.0,0.0695778]
[1773607223648,0.06976536,71875.0,71862.0,0.0695778]
[1773607223848,0.0014,71874.0,71862.0,0.0695778]
[1773607224049,0.0014,71873.0,71862.0,0.0695778]
[1773607224279,0.06976536,71875.0,71862.0,0.0695778]
[1773607224451,0.0014,71872.0,71862.0,0.0695778]
[1773607224901,0.0002,71875.0,71862.0,0.0695778]
[1773607225097,0.0002,71875.0,71863.0,0.13710788]
[1773607225098,0.0014,71874.0,71863.0,0.13710788]
[1773607225306,0.0014,71874.0,71864.0,0.13710788]
[1773607225603,0.0002,71875.0,71865.0,0.13710788]
[1773607225807,0.0014,71873.0,71866.0,0.13710788]
[1773607226012,0.0014,71873.0,71862.0,0.11473448]
[1773607226190,0.0014,71872.0,71863.0,0.13719181]
[1773607226396,0.0014,71872.0,71864.0,0.13719181]
[1773607226604,0.0014,71872.0,71865.0,0.13719181]
[1773607226783,0.0014,71872.0,71866.0,0.13719181]
[1773607227126,0.0014,71871.0,71868.0,0.06957199]
[1773607227418,0.0697655,71875.0,71868.0,0.06957199]
[1773607227624,0.0016,71874.0,71868.0,0.06957199]
[1773607228118,0.0016,71874.0,71869.0,0.13734791]
[1773607228348,0.0014,71873.0,71868.0,0.06957199]
[1773607228494,0.0014,71873.0,71869.0,0.13734718]
[1773607228703,0.0002,71874.0,71869.0,0.13734718]
[1773607228953,0.0014,71873.0,71869.0,0.13734718]
[1773607229138,0.0014,71873.0,71870.0,0.13734718]
[1773607229341,0.0014,71872.0,71871.0,0.13734718]
[1773607229781,0.04800739,71874.0,71871.0,0.13734718]
[1773607229957,0.0014,71872.0,71869.0,0.0695708]
[1773607230127,0.0014,71872.0,71870.0,0.13745786]
[1773607230328,0.0002,71874.0,71871.0,0.13745786]
[1773607230552,0.0014,71873.0,71872.0,0.13745786]
[1773607230747,0.0002,71874.0,71872.0,0.13745786]
[1773607230952,0.0014,71873.0,71869.0,0.0695708]
[1773607231173,0.0002,71874.0,71870.0,0.09734492]
[1773607231332,0.04920739,71873.0,71869.0,0.0695708]
[1773607231672,0.0002,71874.0,71869.0,0.0695708]
[1773607231832,0.0014,71872.0,71869.0,0.0695708]
[1773607232238,0.0002054,71878.0,71869.0,0.0695708]
[1773607232239,0.01033021,71907.0,71871.0,4.832837]
[1773607232432,5e-05,71915.0,71892.0,0.04515668]
[1773607232636,0.0493041,71928.0,71910.0,0.04515668]
[1773607232838,0.04780739,71925.0,71910.0,0.0014]
[1773607233077,0.0003704,71940.0,71912.0,0.04515668]
[1773607233278,0.06955941,71933.0,71911.0,0.06953039]
[1773607233482,0.04780739,71932.0,71912.0,0.0014]
[1773607233944,0.04780739,71932.0,71912.0,0.04655668]
[1773607234082,0.07131489,71933.0,71912.0,0.04655668]
[1773607234618,0.07131489,71933.0,71888.0,0.20589483]
[1773607234764,0.04780739,71919.0,71885.0,5e-05]
[1773607234971,0.04780739,71917.0,71886.0,0.0014]
[1773607235266,0.04780739,71917.0,71886.0,0.04655668]
[1773607235631,0.04780739,71917.0,71903.0,0.001]
[1773607235832,0.04780739,71917.0,71886.0,0.04655668]
[1773607236910,0.06952555,71916.0,71887.0,0.0695536]
[1773607237219,0.04780739,71915.0,71888.0,0.04515668]
[1773607237439,0.04780739,71915.0,71887.0,0.0695536]
[1773607237440,0.04780739,71915.0,71881.0,0.06955899]
[1773607237650,0.04780739,71915.0,71881.0,0.06955941]
[1773607237866,0.04780739,71915.0,71880.0,5e-05]
[1773607238283,0.04780739,71908.0,71875.0,0.06961492]
[1773607238489,0.04780739,71906.0,71875.0,0.06961492]
[1773607238692,0.04780739,71906.0,71875.0,0.06956492]
[1773607238849,0.06953619,71905.0,71870.0,0.06961962]
[1773607239048,0.04780739,71904.0,71870.0,5e-05]
[1773607239235,0.06953619,71905.0,71868.0,0.0003704]
[1773607239236,0.04780739,71899.0,71868.0,0.0003204]
[1773607239582,0.04780739,71897.0,71868.0,0.0003204]
[1773607240895,0.06954489,71896.0,71868.0,0.0003204]
[1773607241097,0.04780739,71895.0,71868.0,0.0003204]
[1773607242091,0.04780739,71895.0,71861.0,0.06979854]
[1773607242293,0.04780739,71889.0,71861.0,0.00022]
[1773607242494,0.04780739,71887.0,71861.0,0.00022]
[1773607243093,0.04780739,71885.0,71861.0,0.00022]
[1773607243494,0.04780739,71885.0,71861.0,1e-08]
[1773607244374,0.02454782,71879.0,71853.0,1e-08]
[1773607244574,0.04920739,71878.0,71853.0,1e-08]
[1773607245091,0.04780739,71869.0,71853.0,1e-08]
[1773607245294,0.17417066,71870.0,71835.0,5e-05]
[1773607245295,0.04780739,71867.0,71835.0,5e-05]
[1773607245492,0.0014,71868.0,71828.0,0.0874562]
[1773607245493,0.04780739,71859.0,71831.0,0.06960747]
[1773607245707,0.04780739,71857.0,71831.0,0.06960747]
[1773607246294,0.04780739,71857.0,71831.0,0.06996346]
[1773607246554,0.04780739,71857.0,71831.0,0.00035599]
[1773607247131,0.04780739,71855.0,71831.0,0.00035599]
[1773607249384,0.04780739,71855.0,71825.0,5e-05]
[1773607249385,0.17417066,71850.0,71825.0,5e-05]
[1773607249570,0.17417066,71832.0,71810.0,5e-05]
[1773607249745,0.04920739,71831.0,71809.0,0.06962875]
[1773607249927,0.0014,71830.0,71809.0,0.06962875]
[1773607250127,0.0014,71830.0,71810.0,0.04515668]
[1773607250629,0.0014,71829.0,71810.0,0.04515668]
[1773607250834,0.0014,71828.0,71810.0,0.04515668]
[1773607251454,0.0696117,71827.0,71811.0,0.06962721]
[1773607252092,0.06996652,71827.0,71811.0,0.06962721]
[1773607252412,0.06996652,71827.0,71812.0,0.05616388]
[1773607252814,0.06996652,71827.0,71811.0,0.06962721]
[1773607252976,0.06996652,71827.0,71810.0,0.06962721]
[1773607253563,0.06996652,71827.0,71807.0,0.06985033]
[1773607253764,0.06996652,71827.0,71811.0,0.00022]
[1773607254169,0.06996652,71827.0,71811.0,0.05679798]
[1773607254358,0.06996652,71827.0,71811.0,0.00022]
[1773607255676,0.05996652,71827.0,71811.0,0.00022]
[1773607256718,0.10416742,71827.0,71811.0,0.00022]
[1773607257095,0.0432009,71826.0,71811.0,0.00022]
[1773607257644,0.06961364,71825.0,71811.0,0.00022]
[1773607259216,0.04314065,71824.0,71811.0,1e-08]
[1773607259531,0.06961558,71823.0,71811.0,1e-08]
[1773607259732,0.11268281,71823.0,71811.0,1e-08]
[1773607259908,0.04306723,71822.0,71811.0,1e-08]
[1773607260120,0.04306723,71820.0,71811.0,1e-08]
[1773607260322,0.06961558,71823.0,71812.0,0.05657798]
[1773607260694,0.06961558,71823.0,71811.0,1e-08]
[1773607260902,0.0014,71822.0,71811.0,1e-08]
[1773607261526,0.06961849,71820.0,71800.0,5e-05]
[1773607261725,0.04292153,71818.0,71796.0,1e-08]
[1773607261955,0.04292153,71812.0,71796.0,0.06964115]
[1773607262154,0.0014,71811.0,71796.0,0.06964115]
[1773607262533,0.0014,71811.0,71796.0,1e-08]
[1773607262934,0.0014,71810.0,71796.0,0.06964159]
[1773607263137,0.0014,71809.0,71796.0,0.06964159]
[1773607263336,0.0014,71808.0,71796.0,1e-08]
[1773607263541,0.03424926,71807.0,71780.0,0.05702798]
[1773607263881,0.03424926,71807.0,71781.0,0.05657798]
[1773607263882,0.03418403,71805.0,71781.0,0.05657798]
[1773607264506,0.03418403,71805.0,71780.0,0.07005692]
[1773607264507,0.03418403,71805.0,71780.0,0.05697798]
[1773607264725,0.03418403,71805.0,71781.0,0.05657798]
[1773607264973,0.02418403,71805.0,71781.0,0.05657798]
[1773607265131,0.02453863,71805.0,71781.0,0.05657798]
[1773607265835,0.02421839,71803.0,71780.0,0.07105684]
[1773607266054,0.02421839,71803.0,71781.0,0.05657798]
[1773607266889,0.02422844,71801.0,71781.0,0.05657798]
[1773607267091,0.0014,71802.0,71781.0,0.05657798]
[1773607267406,0.02562844,71802.0,71781.0,0.05657798]
[1773607267813,0.02415247,71800.0,71781.0,0.05677798]
[1773607269574,0.01515247,71800.0,71781.0,0.05677798]
[1773607270229,0.06963885,71799.0,71781.0,0.05677798]
[1773607271338,0.0014,71798.0,71781.0,0.05677798]
[1773607272531,0.06964079,71797.0,71781.0,0.05677798]
[1773607273491,0.00919308,71796.0,71780.0,1e-08]
[1773607274689,0.06964273,71795.0,71780.0,1e-08]
[1773607276095,0.07877461,71795.0,71780.0,1e-08]
[1773607276584,0.07877461,71795.0,71777.0,1e-08]
[1773607277142,0.00911937,71794.0,71777.0,1e-08]
[1773607277372,0.0014,71793.0,71777.0,1e-08]
[1773607278079,0.0014,71793.0,71778.0,0.05657798]
[1773607278698,0.06964273,71795.0,71778.0,0.05657798]
[1773607278900,0.0014,71792.0,71778.0,0.05657798]
[1773607279885,0.0014,71792.0,71777.0,1e-08]
[1773607280026,0.0014,71792.0,71778.0,0.05657798]
[1773607280234,0.001,71793.0,71778.0,0.05657798]
[1773607280413,0.0014,71792.0,71778.0,0.05657798]
[1773607280834,0.06964661,71791.0,71778.0,0.05657798]
[1773607281721,0.06964661,71791.0,71772.0,0.0696647]
[1773607281935,0.06964661,71791.0,71773.0,0.05317865]
[1773607283048,0.06964661,71791.0,71774.0,0.05317865]
[1773607283258,0.0014,71790.0,71774.0,0.05317865]
[1773607284882,0.05546792,71789.0,71768.0,0.06966844]
[1773607285202,0.06964855,71789.0,71771.0,0.05317865]
[1773607285959,0.0014,71788.0,71771.0,0.05317865]
[1773607286164,0.0014,71788.0,71773.0,0.0002]
[1773607286363,0.0014,71788.0,71774.0,0.05317865]
[1773607287414,0.06965049,71787.0,71776.0,0.05317865]
[1773607287947,0.0014,71788.0,71776.0,0.05317865]
[1773607288154,0.03234816,71831.0,71775.0,0.06966213]
[1773607288360,5e-05,71859.0,71842.0,0.03224743]
[1773607288574,5e-05,71859.0,71843.0,0.13903294]
[1773607288733,0.03234817,71858.0,71844.0,0.13747189]
[1773607288944,0.06963102,71869.0,71845.0,0.13747189]
[1773607288945,0.05546792,71857.0,71845.0,0.13747189]
[1773607289146,0.05546792,71862.0,71841.0,0.00726661]
[1773607289346,0.05546792,71855.0,71842.0,0.13710802]
[1773607289588,0.0454304,71853.0,71843.0,0.13710802]
[1773607289769,0.0454304,71853.0,71844.0,0.13710802]
[1773607289953,0.03234817,71852.0,71842.0,0.00010671]
[1773607291175,0.03334817,71852.0,71842.0,0.00010671]
[1773607291513,0.06958845,71851.0,71842.0,0.00010671]
[1773607291717,0.0014,71850.0,71842.0,0.00010671]
[1773607292132,0.0454304,71849.0,71842.0,0.00010671]
[1773607293519,0.10193952,71848.0,71832.0,0.0014]
[1773607293786,0.10204596,71848.0,71833.0,0.06960589]
[1773607295545,0.03036898,71846.0,71820.0,5e-05]
[1773607295900,0.06546408,71845.0,71822.0,0.0014]
[1773607296103,0.06757642,71843.0,71822.0,0.0014]
[1773607296336,0.06757642,71843.0,71820.0,0.07106837]
[1773607296769,0.06757642,71843.0,71820.0,0.07101837]
[1773607297234,0.06857642,71843.0,71820.0,0.07101837]
[1773607297449,0.03234817,71842.0,71820.0,0.07101837]
[1773607297661,0.06959814,71841.0,71820.0,0.07101837]
[1773607297870,0.06394367,71842.0,71820.0,0.07101837]
[1773607298721,0.0454304,71841.0,71820.0,0.07101837]
[1773607299546,0.0454304,71841.0,71822.0,0.06961655]
[1773607299751,0.00146972,71841.0,71823.0,0.00065098]
[1773607301172,0.00146972,71841.0,71824.0,0.00057141]
[1773607301584,0.00146972,71841.0,71825.0,0.06961364]
[1773607302195,0.00146972,71841.0,71825.0,0.07117833]
[1773607302397,0.00146972,71841.0,71826.0,0.0014]
[1773607302926,0.00166972,71841.0,71826.0,0.0014]
[1773607303670,0.00166972,71841.0,71827.0,0.0696117]
[1773607303867,0.00166972,71841.0,71827.0,0.0710117]
[1773607304438,0.06400238,71842.0,71828.0,0.0014]
[1773607304730,0.00034,72039.0,71835.0,0.20158133]
[1773607304731,0.11895692,71890.0,71835.0,0.20158133]
[1773607304946,0.06989166,71891.0,71867.0,0.05317865]
[1773607305151,0.12546607,71891.0,71868.0,0.0014]
[1773607305359,0.05546792,71890.0,71868.0,0.0014]
[1773607305768,0.06955166,71889.0,71869.0,0.06957102]
[1773607306185,0.06955166,71889.0,71868.0,0.0014]
[1773607306399,0.05546792,71888.0,71865.0,0.0695741]
[1773607308582,0.0695536,71887.0,71865.0,0.0695741]
[1773607308777,0.05686792,71886.0,71865.0,0.0695741]
[1773607308986,0.05686792,71886.0,71864.0,0.06957557]
[1773607310375,0.05686792,71886.0,71863.0,0.06957598]
[1773607310785,0.05686792,71886.0,71857.0,0.0695824]
[1773607310786,0.05546792,71884.0,71858.0,0.06958111]
[1773607313186,0.06759354,71882.0,71860.0,0.04819003]
[1773607313381,0.06759354,71882.0,71861.0,0.13589932]
[1773607313587,0.06759354,71882.0,71862.0,0.13589932]
[1773607313819,0.06759354,71882.0,71860.0,0.04819003]
[1773607314022,0.06759354,71882.0,71861.0,0.13588502]
[1773607314223,0.06759354,71882.0,71862.0,0.13588502]
[1773607314430,0.06759354,71880.0,71863.0,0.13588502]
[1773607314638,0.06759354,71880.0,71860.0,0.04819003]
[1773607314850,0.06759354,71880.0,71861.0,0.13598166]
[1773607315094,0.06956231,71878.0,71863.0,0.06957683]
[1773607315329,0.13715585,71878.0,71864.0,0.13598166]
[1773607316227,0.13715585,71878.0,71865.0,0.13598166]
[1773607316432,0.13715585,71878.0,71866.0,0.13598166]
[1773607316747,0.13715585,71878.0,71867.0,0.13598166]
[1773607316956,0.13715585,71878.0,71868.0,0.13598166]
[1773607317177,0.13815585,71878.0,71869.0,0.13598166]
[1773607317389,0.13815585,71878.0,71870.0,0.13598166]
[1773607317676,0.13715585,71878.0,71871.0,0.13598166]
[1773607317982,0.13815585,71878.0,71872.0,0.13598166]
[1773607318275,0.06759354,71877.0,71873.0,0.13598166]
[1773607318580,0.06759354,71877.0,71874.0,0.13598166]
[1773607318781,0.06759354,71877.0,71875.0,0.13598166]
[1773607318984,0.06759354,71877.0,71867.0,0.06957278]
[1773607319137,0.06956424,71876.0,71867.0,0.06957278]
[1773607320911,0.06759354,71873.0,71856.0,0.06958309]
[1773607321075,0.06956908,71871.0,71849.0,0.0014]
[1773607321277,0.06759354,71870.0,71849.0,0.0014]
[1773607321680,0.06759354,71870.0,71850.0,0.0014]
[1773607322466,0.06759354,71870.0,71850.0,0.05807576]
[1773607322671,0.06899354,71869.0,71850.0,0.0014]
[1773607322894,0.0014,71869.0,71851.0,0.05667576]
[1773607323597,0.0014,71869.0,71853.0,0.05715828]
[1773607323800,0.00144444,71869.0,71853.0,0.05715828]
[1773607323999,4.444e-05,71869.0,71853.0,0.05715828]
[1773607324199,0.0014,71868.0,71853.0,0.05715828]
[1773607324979,0.00144444,71869.0,71853.0,0.05715828]
[1773607325764,4.444e-05,71869.0,71854.0,0.06958554]
[1773607326090,0.06759354,71868.0,71854.0,0.06958554]
[1773607326533,0.06759354,71868.0,71853.0,0.06958554]
[1773607327967,0.06759354,71866.0,71853.0,0.06958554]
[1773607329581,0.06759354,71866.0,71852.0,0.00022]
[1773607329795,0.06759354,71866.0,71848.0,0.06959099]
[1773607330298,0.06759354,71864.0,71847.0,0.06959216]
[1773607330831,0.06759354,71864.0,71847.0,0.23277349]
[1773607331103,0.06759354,71864.0,71848.0,0.13715701]
[1773607331234,0.06759354,71864.0,71849.0,0.13715701]
[1773607331435,0.0014,71863.0,71850.0,0.13715701]
[1773607331636,0.06759354,71862.0,71851.0,0.13715701]
[1773607331857,0.06759354,71862.0,71852.0,0.13715701]
[1773607332066,0.06759354,71862.0,71853.0,0.13715701]
[1773607332385,0.06957877,71861.0,71854.0,0.13715701]
[1773607332586,0.06957877,71861.0,71855.0,0.13715701]
[1773607332794,0.06759354,71860.0,71843.0,0.16318133]
[1773607332947,0.06759354,71860.0,71845.0,0.06959334]
[1773607333996,0.06759354,71860.0,71844.0,0.06981482]
[1773607334175,0.06759354,71858.0,71844.0,0.06981482]
[1773607334382,0.06899354,71857.0,71844.0,0.06981482]
[1773607336485,0.13717715,71856.0,71844.0,0.06981482]
[1773607338171,0.13717715,71856.0,71844.0,0.05981482]
[1773607338616,0.13717715,71856.0,71843.0,0.06959432]
[1773607339872,0.06958361,71856.0,71842.0,0.06959717]
[1773607340092,0.06759354,71855.0,71842.0,0.06959717]
[1773607340327,0.06759354,71855.0,71837.0,1e-08]
[1773607340500,0.06759354,71855.0,71836.0,1e-08]
[1773607340703,0.06759354,71853.0,71835.0,0.05965376]
[1773607340905,0.06759354,71853.0,71834.0,0.06960475]
[1773607341731,0.06957251,71868.0,71835.0,0.06498149]
[1773607341948,0.06759354,71867.0,71835.0,0.0654097]
[1773607342514,0.06759354,71867.0,71836.0,0.0014]
[1773607342698,0.06957392,71866.0,71838.0,0.06960104]
[1773607342993,0.001,71853.0,71839.0,0.06590232]
[1773607343492,0.08226664,71860.0,71839.0,0.06590232]
[1773607344676,0.0695807,71859.0,71840.0,0.0695991]
[1773607345079,0.0695807,71859.0,71841.0,0.06656859]
[1773607345959,0.0695807,71859.0,71842.0,0.0014]
[1773607346562,0.08086664,71858.0,71842.0,0.0014]
[1773607346918,0.06958264,71857.0,71843.0,0.0695962]
[1773607347209,0.08086664,71856.0,71843.0,0.0695962]
[1773607348977,0.08086664,71854.0,71843.0,0.0695962]
[1773607349517,0.08086664,71852.0,71843.0,0.0695962]
[1773607353990,0.0014,71853.0,71843.0,0.0695962]
[1773607355222,0.0014,71853.0,71843.0,0.0698162]
[1773607355904,0.08086664,71852.0,71843.0,0.0698162]
[1773607356909,0.06958183,71858.0,71843.0,0.0698162]
[1773607356910,0.06977304,71867.0,71844.0,0.03427633]
[1773607357111,0.08086664,71865.0,71844.0,0.03427633]
[1773607357373,0.08086664,71865.0,71843.0,0.0698162]
[1773607357574,0.08086664,71863.0,71844.0,0.0014]
[1773607358297,0.08086664,71861.0,71845.0,0.06959426]
[1773607358899,0.08086664,71861.0,71840.0,0.06959907]
[1773607359068,0.08086664,71859.0,71838.0,0.06960057]
[1773607360102,0.08086664,71857.0,71838.0,0.06960057]
[1773607361145,0.08086664,71855.0,71838.0,0.07100057]
[1773607363129,0.08086664,71853.0,71835.0,0.06982382]
[1773607363733,0.08086664,71851.0,71835.0,0.06982382]
[1773607364131,0.08086664,71851.0,71838.0,0.00022]
[1773607365043,0.06958942,71850.0,71838.0,0.00022]
[1773607365249,0.08086664,71849.0,71838.0,0.00022]
[1773607367379,0.08086664,71847.0,71838.0,0.00022]
[1773607367567,0.08086664,71845.0,71838.0,0.00022]
[1773607367770,0.08086664,71844.0,71835.0,0.00022]
[1773607368268,0.08086664,71844.0,71835.0,0.06982391]
[1773607368775,0.08086664,71844.0,71835.0,0.00057526]
[1773607368960,0.08086664,71844.0,71835.0,0.07017893]
[1773607370780,0.0695962,71843.0,71835.0,0.07017893]
[1773607371222,0.0695962,71843.0,71835.0,0.070179]
[1773607372394,0.0695962,71843.0,71835.0,0.00057526]
[1773607372575,0.0695962,71843.0,71835.0,0.07017893]
[1773607373048,0.08645203,71844.0,71835.0,0.07017893]
[1773607373255,0.001,71843.0,71836.0,0.06960298]
[1773607373646,0.001,71843.0,71835.0,0.07017862]
[1773607373867,0.15288387,71844.0,71835.0,0.07017862]
[1773607374121,0.15388387,71844.0,71835.0,0.07017862]
[1773607374467,0.0707807,71844.0,71835.0,0.00057526]
[1773607374701,0.08310317,71843.0,71835.0,0.00057526]
[1773607374926,0.08410317,71843.0,71833.0,0.06982543]
[1773607375095,0.15370031,71843.0,71833.0,0.06993187]
[1773607375415,0.08410317,71843.0,71833.0,0.06993187]
[1773607376023,0.08310317,71843.0,71833.0,0.06993187]
[1773607376419,0.15269991,71843.0,71833.0,0.06993187]
[1773607379246,0.15269991,71843.0,71830.0,0.00022]
[1773607379247,0.08310317,71842.0,71830.0,0.00022]
[1773607379455,0.08310317,71840.0,71830.0,0.00022]
[1773607379745,0.08310317,71838.0,71830.0,0.06982878]
[1773607380948,0.15270445,71838.0,71830.0,0.06982878]
[1773607381356,0.15270445,71838.0,71829.0,0.06960912]
[1773607381578,0.0695807,71837.0,71829.0,0.06960912]
[1773607381773,0.0695807,71837.0,71830.0,0.06960878]
[1773607382791,0.0709807,71837.0,71830.0,0.06960878]
[1773607382943,0.00010646,71842.0,71830.0,0.00022]
[1773607383147,0.06970374,71842.0,71830.0,0.00022]
[1773607383983,0.0014,71841.0,71830.0,0.00022]
[1773607385309,0.0695991,71840.0,71831.0,0.06960782]
[1773607385879,0.07099854,71841.0,71831.0,0.06960782]
[1773607386080,0.06970376,71842.0,71831.0,0.12270672]
[1773607386319,0.06970376,71842.0,71831.0,0.06960782]
[1773607387172,0.06970376,71842.0,71830.0,0.00022]
[1773607387173,0.08310317,71841.0,71830.0,0.00022]
[1773607387444,0.08310317,71839.0,71830.0,0.00022]
[1773607388470,0.08310317,71839.0,71830.0,0.06982835]
[1773607390712,0.0695991,71841.0,71830.0,0.06982835]
[1773607391276,0.15270227,71841.0,71830.0,0.06982835]
[1773607392181,0.00010646,71842.0,71830.0,0.06982835]
[1773607394172,0.08310317,71841.0,71830.0,0.06982835]
[1773607395174,0.00010646,71842.0,71830.0,0.06982835]
[1773607396152,0.0014,71841.0,71830.0,0.06982835]
[1773607397022,0.00010646,71842.0,71830.0,0.06982835]
[1773607398043,0.06959814,71841.0,71830.0,0.06982835]
[1773607400052,0.06990409,71842.0,71830.0,0.06982835]
[1773607400053,0.0699043,71842.0,71830.0,0.06982835]
[1773607403160,0.08612326,71841.0,71830.0,0.06982835]
[1773607403661,0.0695991,71840.0,71830.0,0.06982835]
[1773607405867,0.15572184,71841.0,71830.0,0.06982835]
[1773607412004,0.15592184,71841.0,71830.0,0.06982835]
[1773607412302,0.06709858,71841.0,71830.0,0.06982835]
[1773607412484,0.08612326,71840.0,71830.0,0.06982835]
[1773607414905,0.15572304,71840.0,71830.0,0.06982835]
[1773607415148,0.07209858,71841.0,71830.0,0.06982835]
[1773607415492,0.08612326,71840.0,71830.0,0.06982835]
[1773607417042,0.15572307,71840.0,71830.0,0.06982835]
[1773607418569,0.06959981,71840.0,71828.0,0.06960879]
[1773607418771,0.08612326,71839.0,71829.0,0.06960976]
[1773607419179,0.08612326,71837.0,71829.0,0.06960976]
[1773607420426,0.08612326,71837.0,71830.0,0.06982827]
[1773607420780,0.06960104,71838.0,71830.0,0.06982827]
[1773607421547,0.06960104,71838.0,71827.0,0.06983081]
[1773607421548,0.08612326,71836.0,71827.0,0.06983081]
[1773607422685,0.09398239,71835.0,71827.0,0.06983081]
[1773607425203,0.0944585,71833.0,71827.0,0.00022]
[1773607425402,0.0944585,71833.0,71826.0,0.00022]
[1773607425886,0.0944585,71833.0,71825.0,0.06961327]
[1773607426801,0.005,71831.0,71825.0,0.06961327]
[1773607427095,0.0014,71830.0,71825.0,0.06961327]
[1773607427882,0.09458327,71828.0,71820.0,0.00027]
[1773607428082,0.09458327,71828.0,71820.0,0.06988799]
[1773607428281,0.06960976,71829.0,71820.0,0.06988799]
[1773607428699,0.06960976,71829.0,71820.0,0.06983799]
[1773607429711,0.0014,71830.0,71820.0,0.06983799]
[1773607429894,0.07100928,71830.0,71820.0,0.06983799]
[1773607430245,0.09484169,71850.0,71823.0,0.00040226]
[1773607430451,0.09484169,71850.0,71834.0,0.05812317]
[1773607430452,0.0002,71850.0,71834.0,0.05812317]
[1773607430659,0.0003821,71856.0,71840.0,0.00045186]
[1773607431083,0.0003821,71856.0,71842.0,0.00045186]
[1773607431279,0.0003821,71856.0,71845.0,0.05812317]
[1773607431477,0.0003821,71856.0,71846.0,0.00045186]
[1773607431649,0.0003821,71856.0,71848.0,0.06959135]
[1773607440877,0.09522319,71854.0,71835.0,0.069603]
[1773607441036,0.05812317,71850.0,71835.0,0.069603]
[1773607441238,0.09522319,71849.0,71835.0,0.069603]
[1773607442200,0.09522319,71849.0,71834.0,5.434e-05]
[1773607442201,0.06959135,71848.0,71834.0,5.434e-05]
[1773607442401,0.09525457,71847.0,71834.0,5.434e-05]
[1773607442760,0.09525457,71845.0,71834.0,5.434e-05]
[1773607444472,0.06959523,71844.0,71834.0,5.434e-05]
[1773607444669,0.09528293,71843.0,71834.0,5.434e-05]
[1773607448113,0.0016,71855.0,71834.0,5.434e-05]
[1773607448313,0.0002,71855.0,71840.0,0.05812317]
[1773607448469,0.0014,71854.0,71838.0,0.0014]
[1773607448667,0.0970563,71854.0,71838.0,0.0014]
[1773607448912,0.00022001,71843.0,71838.0,0.0014]
[1773607449329,0.00022001,71851.0,71838.0,0.0014]
[1773607449894,0.0002,71855.0,71841.0,6.705e-05]
[1773607450105,0.0002,71855.0,71841.0,0.06959814]
[1773607453138,0.04796573,71856.0,71841.0,0.06959814]
[1773607455030,0.04796573,71856.0,71840.0,0.06959814]
[1773607455765,0.0014,71856.0,71840.0,0.06959814]
[1773607455974,0.0002,71857.0,71840.0,0.06959814]
[1773607456178,0.00022001,71855.0,71840.0,0.06959814]
[1773607458311,0.09574802,71854.0,71840.0,0.06959814]
[1773607462427,0.09559844,71852.0,71835.0,0.06960395]
[1773607463137,0.09559844,71852.0,71836.0,0.0014]
[1773607464818,0.09682126,71850.0,71837.0,0.06960201]
[1773607466539,0.09691252,71848.0,71837.0,0.07060201]
[1773607466957,0.09691252,71846.0,71836.0,0.06979651]
[1773607470789,0.16650667,71846.0,71838.0,0.06960104]
[1773607471772,0.06959415,71846.0,71838.0,0.06960104]
[1773607471976,0.09604596,71845.0,71837.0,0.06982121]
[1773607472558,0.06959415,71846.0,71837.0,0.06982121]
[1773607472957,0.09604519,71846.0,71837.0,0.06982121]
[1773607476236,0.06959426,71845.0,71837.0,0.06982121]
[1773607478213,0.06959329,71848.0,71837.0,0.06982121]
[1773607478398,0.10129461,71847.0,71837.0,0.06982121]
[1773607479313,0.10129461,71847.0,71835.0,0.03343346]
[1773607479521,0.10129461,71847.0,71837.0,0.06960104]
[1773607481335,0.10129461,71847.0,71836.0,0.06960201]
[1773607481539,0.06959329,71846.0,71836.0,0.06960201]
[1773607481738,0.17094054,71846.0,71836.0,0.06960201]
[1773607482457,0.06959329,71846.0,71836.0,0.06960201]
[1773607482608,0.17163061,71846.0,71836.0,0.06960201]
[1773607483360,0.10203732,71845.0,71836.0,0.06960201]
[1773607483664,0.10203732,71843.0,71835.0,0.06960298]
[1773607486386,0.06959717,71842.0,71836.0,0.06982257]
[1773607487554,0.06959717,71842.0,71836.0,0.06982287]
[1773607493976,0.06959717,71843.0,71836.0,0.06982287]
[1773607495177,0.06981739,71842.0,71836.0,0.06982287]
[1773607495532,0.00022001,71842.0,71836.0,0.06982287]
[1773607497476,0.06981728,71842.0,71836.0,0.06982287]
[1773607498885,0.00022001,71842.0,71836.0,0.06982287]
[1773607501827,0.11020727,71842.0,71836.0,0.06982287]
[1773607502159,0.17980482,71842.0,71836.0,0.06982287]
[1773607502856,0.00022001,71842.0,71836.0,0.06982287]
[1773607503616,4.999e-05,71842.0,71836.0,0.06982287]
[1773607504026,0.00022001,71855.0,71836.0,0.06982287]
[1773607504206,0.0002,71859.0,71840.0,0.05809492]
[1773607504408,0.0002,71859.0,71841.0,0.0014]
[1773607505661,0.0014,71865.0,71841.0,0.0014]
[1773607505662,0.0001691,71869.0,71849.0,0.05809492]
[1773607505862,0.08428004,71868.0,71850.0,0.0014]
[1773607506199,0.01470797,71868.0,71850.0,0.0014]
[1773607506337,0.01470797,71868.0,71851.0,0.04052655]
[1773607506837,0.08428021,71868.0,71851.0,0.04052655]
[1773607508058,0.08428021,71868.0,71852.0,0.06958748]
[1773607508888,5e-05,71880.0,71858.0,0.05809492]
[1773607509088,5e-05,71880.0,71852.0,0.06958748]
[1773607509089,0.08736047,71890.0,71870.0,0.05809492]
[1773607509288,0.08736047,71890.0,71871.0,0.0014]
[1773607510236,0.08736047,71890.0,71872.0,0.06956812]
[1773607510237,0.15691213,71889.0,71872.0,0.06956812]
[1773607510719,0.08736047,71881.0,71857.0,0.06958264]
[1773607510931,0.08736047,71878.0,71857.0,0.06958264]
[1773607511096,0.08736047,71875.0,71857.0,0.06958264]
[1773607511307,0.08736047,71875.0,71858.0,0.0014]
[1773607511711,0.08736047,71875.0,71858.0,0.0009494]
[1773607512323,0.15692602,71875.0,71859.0,0.0695807]
[1773607512660,0.08736047,71874.0,71859.0,0.0695807]
[1773607516166,0.08736047,71873.0,71858.0,0.07098167]
[1773607516323,0.06956812,71872.0,71858.0,0.07098167]
[1773607516529,0.08736047,71871.0,71858.0,0.07098167]
[1773607516768,0.05809492,71870.0,71856.0,0.06975657]
[1773607516971,0.08736047,71869.0,71856.0,0.0014]
[1773607517319,0.08736047,71867.0,71855.0,0.0014]
[1773607517966,0.08736047,71867.0,71850.0,0.07098942]
[1773607518554,0.08736047,71865.0,71850.0,0.06958942]
[1773607518757,0.08736047,71865.0,71851.0,0.0014]
[1773607520532,0.08736047,71865.0,71849.0,0.06959039]
[1773607520533,0.06957586,71864.0,71849.0,0.06959039]
[1773607520733,0.08736047,71863.0,71849.0,0.06959039]
[1773607520939,0.08736047,71863.0,71848.0,0.03151675]